[Event "Championnat du monde jeunes U10"]
[Date "2024.11.25"]
[White "Jani, Aakash"]
[Black "Yevsieiev, Yaroslav"]
[WhiteElo "1810"]
[BlackElo "1706"]
[Round "10.29"]
[Result "1/2-1/2"]
[TimeControl "5400+30"]

1. e4 {[%clk 1:30:46]} 1... e5 {[%clk 1:30:58]} 2. Nf3 {[%clk 1:30:42]} 2... Nc6
{[%clk 1:31:23]} 3. Nc3 {[%clk 1:30:36]} 3... Nf6 {[%clk 1:31:49]} 4. a3 {[%clk
1:30:12]} 4... Bc5 {[%clk 1:32:06]} 5. Nxe5 {[%clk 1:29:43]} 5... Nxe5 {[%clk
1:32:13]} 6. d4 {[%clk 1:29:20]} 6... Bd6 {[%clk 1:32:15]} 7. f4 {[%clk
1:28:15]} 7... Nc6 {[%clk 1:29:30]} 8. e5 {[%clk 1:27:19]} 8... O-O {[%clk
1:28:30]} 9. Be2 {[%clk 1:26:42]} 9... Be7 {[%clk 1:26:30]} 10. exf6 {[%clk
1:25:03]} 10... Bxf6 {[%clk 1:26:50]} 11. d5 {[%clk 1:24:55]} 11... Nd4 {[%clk
1:26:49]} 12. O-O {[%clk 1:20:14]} 12... Nxe2+ {[%clk 1:24:14]} 13. Nxe2 {[%clk
1:18:11]} 13... d6 {[%clk 1:21:41]} 14. h3 {[%clk 1:16:37]} 14... Re8 {[%clk
1:19:27]} 15. c4 {[%clk 1:11:39]} 15... c6 {[%clk 1:17:55]} 16. Ng3 {[%clk
1:05:14]} 16... cxd5 {[%clk 1:16:38]} 17. Qxd5 {[%clk 1:04:18]} 17... Qb6+
{[%clk 1:14:32]} 18. Kh2 {[%clk 1:04:23]} 18... Be6 {[%clk 1:14:47]} 19. Qd3
{[%clk 1:02:28]} 19... Rec8 {[%clk 1:14:27]} 20. Ne4 {[%clk 0:59:14]} 20... Bd4
{[%clk 1:06:40]} 21. Rd1 {[%clk 0:58:47]} 21... Rxc4 {[%clk 1:04:39]} 22. Ng5
{[%clk 0:58:56]} 22... Rac8 {[%clk 1:04:19]} 23. Qxh7+ {[%clk 0:57:27]} 23...
Kf8 {[%clk 1:04:01]} 24. f5 {[%clk 0:56:41]} 24... Be5+ {[%clk 1:03:27]} 25. Kh1
{[%clk 0:56:39]} 25... Bd5 {[%clk 1:03:47]} 26. Qh5 {[%clk 0:38:33]} 26... Rd4
{[%clk 1:01:30]} 27. Re1 {[%clk 0:33:14]} 27... Qc6 {[%clk 1:01:24]} 28. Be3
{[%clk 0:27:27]} 28... Bxg2+ {[%clk 0:55:58]} 29. Kg1 {[%clk 0:27:41]} 29... Bd5
{[%clk 0:56:24]} 30. Bf2 {[%clk 0:15:54]} 30... Qc2 {[%clk 0:54:02]} 31. Qh8+
{[%clk 0:13:38]} 31... Ke7 {[%clk 0:54:17]} 32. Qxg7 {[%clk 0:13:54]} 32... Kd7
{[%clk 0:53:50]} 33. Rxe5 {[%clk 0:12:50]} 33... dxe5 {[%clk 0:53:20]} 34. Re1
{[%clk 0:06:55]} 34... Rd1 {[%clk 0:53:07]} 35. Nxf7 {[%clk 0:06:31]} 35...
Rxe1+ {[%clk 0:43:00]} 36. Bxe1 {[%clk 0:06:49]} 36... Qxf5 {[%clk 0:42:32]} 37.
Nxe5+ {[%clk 0:07:15]} 37... Ke6 {[%clk 0:38:56]} 38. Ng4 {[%clk 0:01:42]} 38...
Rf8 {[%clk 0:39:05]} 39. Qh6+ {[%clk 0:01:53]} 39... Kd7 {[%clk 0:39:24]} 40.
Qd2 {[%clk 0:01:47]} 40... Kc8 {[%clk 0:38:47]} 41. Bf2 {[%clk 0:01:40]} 41...
Qe4 {[%clk 0:38:26]} 42. Qc3+ {[%clk 0:01:43]} 42... Bc6 {[%clk 0:38:45]} 43.
Kf1 {[%clk 0:01:46]} 43... Qg2+ {[%clk 0:37:14]} 44. Ke2 {[%clk 0:01:23]} 44...
Re8+ {[%clk 0:37:06]} 45. Kd2 {[%clk 0:01:23]} 45... Qf1 {[%clk 0:36:06]} 46.
Kc2 {[%clk 0:01:03]} 46... Re2+ {[%clk 0:36:03]} 47. Kb3 {[%clk 0:01:23]} 47...
Rxf2 {[%clk 0:35:00]} 48. Nxf2 {[%clk 0:01:47]} 48... Qxf2 {[%clk 0:35:18]} 49.
Ka2 {[%clk 0:02:11]} 49... Kd7 {[%clk 0:33:03]} 50. Qg7+ {[%clk 0:02:17]} 50...
Kd6 {[%clk 0:33:00]} 51. Qg6+ {[%clk 0:02:27]} 51... Kc7 {[%clk 0:33:10]} 52.
Qg7+ {[%clk 0:02:51]} 52... Kb6 {[%clk 0:33:29]} 53. Qe5 {[%clk 0:03:03]} 53...
Qc5 {[%clk 0:33:04]} 54. Qxc5+ {[%clk 0:03:19]} 54... Kxc5 {[%clk 0:33:30]} 55.
Kb3 {[%clk 0:03:34]} 55... Bf3 {[%clk 0:33:48]} 56. Kc3 {[%clk 0:03:55]} 56...
b5 {[%clk 0:34:11]} 57. b4+ {[%clk 0:04:07]} 57... Kd5 {[%clk 0:34:37]} 58. a4
{[%clk 0:04:22]} 58... bxa4 {[%clk 0:34:51]} 59. Kb2 {[%clk 0:04:47]} 59... Kc4
{[%clk 0:35:08]} 60. Ka1 {[%clk 0:05:03]} 60... Kxb4 {[%clk 0:34:46]} 61. Kb1
{[%clk 0:05:27]} 1/2-1/2

[Variant "Standard"]
[Site "Europe Echecs"]

[Event "Championnat du monde jeunes U10"]
[Date "2024.11.25"]
[White "Ramesan, Raunak Amit"]
[Black "Kazimzade, Mahammad"]
[WhiteElo "1802"]
[BlackElo "1687"]
[Round "10.30"]
[Result "1/2-1/2"]
[TimeControl "5400+30"]

1. e4 {[%clk 1:30:59]} 1... e5 {[%clk 1:30:49]} 2. Nf3 {[%clk 1:31:23]} 2... Nc6
{[%clk 1:31:09]} 3. Bc4 {[%clk 1:31:50]} 3... Nf6 {[%clk 1:31:30]} 4. d3 {[%clk
1:32:18]} 4... Bc5 {[%clk 1:31:26]} 5. c3 {[%clk 1:32:45]} 5... d6 {[%clk
1:30:49]} 6. O-O {[%clk 1:33:10]} 6... a6 {[%clk 1:30:49]} 7. a4 {[%clk
1:33:22]} 7... O-O {[%clk 1:30:53]} 8. Re1 {[%clk 1:33:49]} 8... Bb6 {[%clk
1:30:36]} 9. h3 {[%clk 1:33:53]} 9... h6 {[%clk 1:30:56]} 10. Nbd2 {[%clk
1:33:58]} 10... Ne7 {[%clk 1:30:31]} 11. a5 {[%clk 1:34:07]} 11... Ba7 {[%clk
1:30:39]} 12. Nf1 {[%clk 1:32:14]} 12... Ng6 {[%clk 1:30:32]} 13. b4 {[%clk
1:31:25]} 13... Re8 {[%clk 1:29:56]} 14. Ng3 {[%clk 1:30:15]} 14... c6 {[%clk
1:29:06]} 15. Bb3 {[%clk 1:27:39]} 15... Qc7 {[%clk 1:24:38]} 16. d4 {[%clk
1:21:09]} 16... Bd7 {[%clk 1:22:29]} 17. Qc2 {[%clk 1:15:41]} 17... d5 {[%clk
1:18:57]} 18. exd5 {[%clk 1:08:49]} 18... cxd5 {[%clk 1:18:29]} 19. dxe5 {[%clk
1:04:00]} 19... Nxe5 {[%clk 1:18:49]} 20. Rxe5 {[%clk 1:03:22]} 20... Rxe5
{[%clk 1:19:00]} 21. Nxe5 {[%clk 1:03:07]} 21... Qxe5 {[%clk 1:19:24]} 22. Nf1
{[%clk 1:01:26]} 22... Ne4 {[%clk 1:18:38]} 23. Be3 {[%clk 1:00:18]} 23... Bxe3
{[%clk 1:17:35]} 24. Nxe3 {[%clk 1:00:32]} 24... Nxc3 {[%clk 1:17:24]} 25. Kh1
{[%clk 0:54:50]} 25... Rc8 {[%clk 1:16:21]} 26. Qb2 {[%clk 0:52:35]} 26... d4
{[%clk 1:15:30]} 27. Nc4 {[%clk 0:52:32]} 27... Qf4 {[%clk 1:12:07]} 28. Nb6
{[%clk 0:52:13]} 28... Rd8 {[%clk 1:11:37]} 29. Nxd7 {[%clk 0:52:13]} 29... Rxd7
{[%clk 1:11:58]} 30. Re1 {[%clk 0:50:44]} 30... Ne4 {[%clk 1:11:55]} 31. Qc2
{[%clk 0:48:51]} 31... Re7 {[%clk 1:10:35]} 32. Kg1 {[%clk 0:47:46]} 32... d3
{[%clk 1:10:25]} 33. Qc8+ {[%clk 0:44:32]} 33... Kh7 {[%clk 1:10:47]} 34. f3
{[%clk 0:43:48]} 34... Nd6 {[%clk 1:10:36]} 35. Qc3 {[%clk 0:43:59]} 35... Rxe1+
{[%clk 1:10:38]} 36. Qxe1 {[%clk 0:44:19]} 36... Qd4+ {[%clk 1:10:44]} 37. Kh2
{[%clk 0:43:18]} 37... Nf5 {[%clk 1:10:04]} 38. Qe8 {[%clk 0:39:58]} 38... Qf4+
{[%clk 1:09:02]} 39. Kg1 {[%clk 0:38:01]} 39... Nd4 {[%clk 1:06:33]} 40. Bxf7
{[%clk 0:34:50]} 40... Qxf7 {[%clk 1:02:48]} 41. Qxf7 {[%clk 0:35:14]} 41... d2
{[%clk 1:03:12]} 42. Qxb7 {[%clk 0:34:40]} 42... d1=Q+ {[%clk 1:03:30]} 43. Kh2
{[%clk 0:34:45]} 43... Qe2 {[%clk 1:02:40]} 44. Qd5 {[%clk 0:33:35]} 44... Qe3
{[%clk 1:02:37]} 45. Qc4 {[%clk 0:31:11]} 45... Qe5+ {[%clk 1:01:31]} 46. Kh1
{[%clk 0:29:38]} 46... Nf5 {[%clk 1:01:26]} 47. Qd3 {[%clk 0:28:59]} 47... g6
{[%clk 1:00:07]} 48. Qxa6 {[%clk 0:27:46]} 48... Ng3+ {[%clk 1:00:30]} 49. Kg1
{[%clk 0:28:08]} 49... h5 {[%clk 0:57:13]} 50. Qa7+ {[%clk 0:26:38]} 50... Kh6
{[%clk 0:57:34]} 51. Qc5 {[%clk 0:23:00]} 51... Qe1+ {[%clk 0:57:24]} 52. Kh2
{[%clk 0:21:32]} 52... Nf1+ {[%clk 0:57:49]} 53. Kg1 {[%clk 0:20:43]} 53... Ne3+
{[%clk 0:58:13]} 54. Kh2 {[%clk 0:21:02]} 54... Nf1+ {[%clk 0:53:18]} 55. Kg1
{[%clk 0:21:27]} 55... Ng3+ {[%clk 0:52:55]} 56. Kh2 {[%clk 0:21:40]} 56... Nf5
{[%clk 0:53:16]} 57. Qf8+ {[%clk 0:21:22]} 57... Kg5 {[%clk 0:53:38]} 58. Qd8+
{[%clk 0:20:51]} 58... Ne7 {[%clk 0:54:01]} 59. Qd4 {[%clk 0:16:02]} 59... h4
{[%clk 0:53:43]} 60. Qg4+ {[%clk 0:15:48]} 60... Kf6 {[%clk 0:53:26]} 61. Qd4+
{[%clk 0:14:24]} 61... Ke6 {[%clk 0:53:11]} 62. Qc4+ {[%clk 0:14:12]} 62... Kf5
{[%clk 0:52:02]} 63. Qf7+ {[%clk 0:13:46]} 63... Kg5 {[%clk 0:51:57]} 64. f4+
{[%clk 0:14:03]} 64... Kh6 {[%clk 0:51:58]} 65. Qf8+ {[%clk 0:14:08]} 65... Kh7
{[%clk 0:52:20]} 66. Qf7+ {[%clk 0:14:22]} 66... Kh8 {[%clk 0:52:45]} 67. Qf8+
{[%clk 0:14:41]} 67... Ng8 {[%clk 0:53:06]} 68. a6 {[%clk 0:13:34]} 68... Qg3+
{[%clk 0:52:56]} 69. Kg1 {[%clk 0:13:56]} 69... Qd3 {[%clk 0:52:56]} 70. Qc8
{[%clk 0:11:02]} 70... Qd4+ {[%clk 0:48:03]} 71. Kh1 {[%clk 0:11:26]} 71... Qxf4
{[%clk 0:46:52]} 72. a7 {[%clk 0:11:12]} 1/2-1/2

[Variant "Standard"]
[Site "Europe Echecs"]

[Event "Championnat du monde jeunes U10"]
[Date "2024.11.25"]
[White "Skouroupathis, Kyriakos"]
[Black "Kovacs, Balazs"]
[WhiteElo "1695"]
[BlackElo "1800"]
[Round "10.31"]
[Result "1-0"]
[TimeControl "5400+30"]

1. Nc3 d5 {[%clk 1:30:44]} 2. e4 {[%clk 1:31:21]} 2... d4 {[%clk 1:31:09]} 3.
Nce2 {[%clk 1:31:45]} 3... e5 {[%clk 1:31:29]} 4. Ng3 {[%clk 1:32:06]} 4... Be6
{[%clk 1:31:16]} 5. c3 {[%clk 1:32:13]} 5... c5 {[%clk 1:31:34]} 6. Nf3 {[%clk
1:31:33]} 6... Nc6 {[%clk 1:31:06]} 7. Bb5 {[%clk 1:31:16]} 7... f6 {[%clk
1:30:23]} 8. O-O {[%clk 1:26:40]} 8... Ne7 {[%clk 1:25:45]} 9. cxd4 {[%clk
1:23:56]} 9... cxd4 {[%clk 1:24:53]} 10. d3 {[%clk 1:24:03]} 10... Qb6 {[%clk
1:13:57]} 11. Bxc6+ {[%clk 1:16:31]} 11... bxc6 {[%clk 1:04:05]} 12. Qc2 {[%clk
1:11:11]} 12... Rb8 {[%clk 0:56:20]} 13. b3 {[%clk 1:06:30]} 13... Ng6 {[%clk
0:55:41]} 14. Nd2 {[%clk 1:04:56]} 14... Bb4 {[%clk 0:51:41]} 15. Nc4 {[%clk
1:01:43]} 15... Qc7 {[%clk 0:48:06]} 16. Ne2 {[%clk 0:57:54]} 16... O-O {[%clk
0:43:19]} 17. f4 {[%clk 0:53:29]} 17... f5 {[%clk 0:35:25]} 18. exf5 {[%clk
0:52:18]} 18... Bxf5 {[%clk 0:33:52]} 19. fxe5 {[%clk 0:52:15]} 19... Bg4 {[%clk
0:32:34]} 20. Bb2 {[%clk 0:49:00]} 20... Bc5 {[%clk 0:12:26]} 21. Bxd4 {[%clk
0:42:16]} 21... Rxf1+ {[%clk 0:08:45]} 22. Rxf1 {[%clk 0:42:33]} 22... Bxe2
{[%clk 0:04:14]} 23. Bxc5 {[%clk 0:42:52]} 23... Bxf1 {[%clk 0:04:37]} 24. Bd6
{[%clk 0:43:19]} 24... Qd7 {[%clk 0:04:37]} 25. Bxb8 {[%clk 0:43:15]} 25... Bxd3
{[%clk 0:04:39]} 26. Qf2 {[%clk 0:24:52]} 26... Bxc4 {[%clk 0:03:41]} 27. bxc4
{[%clk 0:25:11]} 27... Qd1+ {[%clk 0:03:55]} 28. Qf1 {[%clk 0:25:35]} 28... Qd4+
{[%clk 0:04:13]} 29. Kh1 {[%clk 0:25:23]} 29... Nf4 {[%clk 0:00:40]} 30. h3
{[%clk 0:24:48]} 30... Nd3 {[%clk 0:00:36]} 31. e6 {[%clk 0:22:39]} 31... Nf2+
{[%clk 0:00:33]} 32. Kh2 {[%clk 0:23:01]} 32... Qh4 {[%clk 0:00:32]} 33. Bg3
{[%clk 0:20:46]} 33... Ng4+ {[%clk 0:00:33]} 34. Kg1 {[%clk 0:20:21]} 34... Qe7
{[%clk 0:00:38]} 35. Qf7+ {[%clk 0:20:05]} 35... Qxf7 {[%clk 0:01:01]} 36. exf7+
{[%clk 0:20:23]} 36... Kxf7 {[%clk 0:01:25]} 37. hxg4 {[%clk 0:20:51]} 37... Kg6
{[%clk 0:01:38]} 38. Kf2 {[%clk 0:21:07]} 38... Kg5 {[%clk 0:01:28]} 39. Be5
{[%clk 0:21:01]} 39... g6 {[%clk 0:01:28]} 40. Kf3 {[%clk 0:20:54]} 40... a6
{[%clk 0:00:52]} 41. g3 {[%clk 0:21:13]} 41... a5 {[%clk 0:00:52]} 42. a4 {[%clk
0:21:24]} 42... Kh6 {[%clk 0:01:12]} 43. Bc7 {[%clk 0:21:50]} 43... c5 {[%clk
0:01:32]} 44. Bxa5 {[%clk 0:22:06]} 44... g5 {[%clk 0:01:52]} 45. Bd8 {[%clk
0:22:26]} 45... Kg6 {[%clk 0:02:13]} 46. a5 {[%clk 0:22:49]} 46... Kh6 {[%clk
0:02:26]} 47. Bxg5+ {[%clk 0:23:10]} 47... Kxg5 {[%clk 0:02:50]} 48. a6 {[%clk
0:23:32]} 48... Kg6 {[%clk 0:03:06]} 49. a7 {[%clk 0:23:59]} 49... Kh6 {[%clk
0:03:23]} 50. a8=Q {[%clk 0:24:17]} 50... Kg7 {[%clk 0:03:41]} 51. Qc6 {[%clk
0:24:37]} 51... Kf7 {[%clk 0:04:01]} 52. Kf4 {[%clk 0:25:02]} 52... Kg7 {[%clk
0:04:25]} 53. Kf5 {[%clk 0:25:25]} 53... h5 {[%clk 0:04:47]} 54. Qg6+ {[%clk
0:25:47]} 54... Kh8 {[%clk 0:05:13]} 55. Kf6 {[%clk 0:26:03]} 55... hxg4 {[%clk
0:05:36]} 56. Qg7# {[%clk 0:26:29]} 1-0

[Variant "Standard"]
[Site "Europe Echecs"]

[Event "Championnat du monde jeunes U10"]
[Date "2024.11.25"]
[White "Guntaka, Aayansh"]
[Black "Tugsbilguun, Davganamdag"]
[WhiteElo "1798"]
[BlackElo "1660"]
[Round "10.32"]
[Result "0-1"]
[TimeControl "5400+30"]

1. e4 {[%clk 1:30:57]} 1... c5 {[%clk 1:31:00]} 2. Nf3 {[%clk 1:31:19]} 2... d6
{[%clk 1:31:19]} 3. d4 {[%clk 1:31:43]} 3... cxd4 {[%clk 1:31:46]} 4. Nxd4
{[%clk 1:32:07]} 4... Nf6 {[%clk 1:32:12]} 5. Nc3 {[%clk 1:32:29]} 5... a6
{[%clk 1:32:39]} 6. Rg1 {[%clk 1:32:53]} 6... b5 {[%clk 1:32:29]} 7. g4 {[%clk
1:32:47]} 7... Bb7 {[%clk 1:32:31]} 8. Bg2 {[%clk 1:33:05]} 8... e6 {[%clk
1:32:40]} 9. a3 {[%clk 1:20:04]} 9... Nfd7 {[%clk 1:32:02]} 10. g5 {[%clk
1:16:12]} 10... Nb6 {[%clk 1:29:58]} 11. h4 {[%clk 1:16:13]} 11... N8d7 {[%clk
1:26:29]} 12. h5 {[%clk 1:13:42]} 12... Qe7 {[%clk 1:07:56]} 13. g6 {[%clk
1:10:10]} 13... hxg6 {[%clk 1:00:34]} 14. hxg6 {[%clk 1:10:28]} 14... O-O-O
{[%clk 0:59:54]} 15. a4 {[%clk 1:06:26]} 15... bxa4 {[%clk 0:52:12]} 16. Nxa4
{[%clk 1:00:28]} 16... Nxa4 {[%clk 0:49:04]} 17. Rxa4 {[%clk 1:00:50]} 17... Nc5
{[%clk 0:44:40]} 18. Rc4 {[%clk 0:56:45]} 18... Kb8 {[%clk 0:44:31]} 19. b4
{[%clk 0:53:57]} 19... Nxe4 {[%clk 0:42:15]} 20. Bxe4 {[%clk 0:53:46]} 20...
Bxe4 {[%clk 0:42:17]} 21. Qe2 {[%clk 0:53:06]} 21... Bb7 {[%clk 0:39:14]} 22.
Nc6+ {[%clk 0:53:08]} 22... Bxc6 {[%clk 0:39:43]} 23. Rxc6 {[%clk 0:53:36]}
23... Qb7 {[%clk 0:38:44]} 24. Rxa6 {[%clk 0:52:32]} 24... Rh1 {[%clk 0:36:18]}
25. Kf1 {[%clk 0:50:17]} 25... Be7 {[%clk 0:26:52]} 26. Be3 {[%clk 0:39:30]}
26... Rdh8 {[%clk 0:24:15]} 27. f3 {[%clk 0:39:25]} 27... R8h2 {[%clk 0:21:48]}
28. Bf2 {[%clk 0:37:32]} 28... Qxb4 {[%clk 0:12:18]} 29. Ra8+ {[%clk 0:20:16]}
29... Kc7 {[%clk 0:11:24]} 30. Qd3 {[%clk 0:10:42]} 30... Qb1+ {[%clk 0:09:48]}
31. Be1 {[%clk 0:08:52]} 31... Qxe1+ {[%clk 0:10:01]} 32. Kxe1 {[%clk 0:09:15]}
32... Rxg1+ {[%clk 0:10:27]} 33. Qf1 {[%clk 0:09:35]} 33... Bh4+ {[%clk
0:10:57]} 34. Kd1 {[%clk 0:09:51]} 34... Rxf1# {[%clk 0:11:26]} 0-1

[Variant "Standard"]
[Site "Europe Echecs"]

[Event "Championnat du monde jeunes U10"]
[Date "2024.11.25"]
[White "Gomez Silva, Maximiliano"]
[Black "Neuschild, Marius"]
[WhiteElo "1643"]
[BlackElo "1786"]
[Round "10.33"]
[Result "1/2-1/2"]
[TimeControl "5400+30"]

1. d4 {[%clk 1:30:52]} 1... d5 {[%clk 1:30:58]} 2. Nf3 {[%clk 1:31:00]} 2... Nf6
{[%clk 1:31:25]} 3. g3 {[%clk 1:30:38]} 3... Bf5 {[%clk 1:31:37]} 4. Bg2 {[%clk
1:31:02]} 4... e6 {[%clk 1:32:02]} 5. O-O {[%clk 1:31:11]} 5... h6 {[%clk
1:32:31]} 6. c4 {[%clk 1:30:38]} 6... c6 {[%clk 1:32:41]} 7. Nc3 {[%clk
1:30:37]} 7... Be7 {[%clk 1:32:58]} 8. Qb3 {[%clk 1:30:16]} 8... Qb6 {[%clk
1:32:50]} 9. c5 {[%clk 1:30:10]} 9... Qxb3 10. axb3 {[%clk 1:30:39]} 10... O-O
{[%clk 1:24:37]} 11. Bf4 {[%clk 1:26:22]} 11... Nbd7 {[%clk 1:22:39]} 12. b4
{[%clk 1:23:24]} 12... Ne4 {[%clk 1:16:34]} 13. Nd2 {[%clk 1:18:09]} 13... Nxd2
{[%clk 1:14:44]} 14. Bxd2 {[%clk 1:17:30]} 14... a6 {[%clk 1:13:23]} 15. f3
{[%clk 1:14:16]} 15... Bg6 {[%clk 1:00:44]} 16. e4 {[%clk 1:10:00]} 16... Rfe8
{[%clk 0:51:29]} 17. Rfe1 {[%clk 1:01:30]} 17... Bf6 {[%clk 0:49:31]} 18. e5
{[%clk 0:57:27]} 18... Be7 {[%clk 0:46:51]} 19. Bf1 {[%clk 0:45:20]} 19... Reb8
{[%clk 0:44:35]} 20. Ra2 {[%clk 0:41:38]} 20... Rc8 {[%clk 0:40:00]} 21. Rea1
{[%clk 0:38:00]} 21... Rab8 {[%clk 0:40:17]} 22. Re1 {[%clk 0:36:11]} 22... Ra8
23. Rea1 Rab8 24. Re1 Rf8 1/2-1/2

[Variant "Standard"]
[Site "Europe Echecs"]

[Event "Championnat du monde jeunes U10"]
[Date "2024.11.25"]
[White "Rama, Federico"]
[Black "Liu, Liam"]
[WhiteElo "1564"]
[BlackElo "1783"]
[Round "10.34"]
[Result "0-1"]
[TimeControl "5400+30"]

1. Nf3 {[%clk 1:30:56]} 1... Nf6 {[%clk 1:30:51]} 2. b3 {[%clk 1:31:19]} 2... g6
{[%clk 1:31:09]} 3. Bb2 {[%clk 1:31:44]} 3... Bg7 {[%clk 1:31:29]} 4. e3 {[%clk
1:31:46]} 4... O-O {[%clk 1:31:26]} 5. Be2 {[%clk 1:32:04]} 5... d5 {[%clk
1:31:44]} 6. O-O {[%clk 1:32:08]} 6... c5 {[%clk 1:31:33]} 7. d4 {[%clk
1:31:05]} 7... cxd4 {[%clk 1:28:16]} 8. exd4 {[%clk 1:30:23]} 8... Nc6 {[%clk
1:27:12]} 9. Nbd2 {[%clk 1:22:11]} 9... Bf5 {[%clk 1:26:17]} 10. a3 {[%clk
1:22:08]} 10... Rc8 {[%clk 1:26:04]} 11. c4 {[%clk 1:17:42]} 11... Qc7 {[%clk
1:18:55]} 12. Rc1 {[%clk 1:14:21]} 12... Rfd8 {[%clk 1:16:58]} 13. cxd5 {[%clk
1:12:19]} 13... Nxd5 {[%clk 1:17:15]} 14. b4 {[%clk 1:02:12]} 14... a6 {[%clk
1:14:47]} 15. Nc4 {[%clk 0:55:17]} 15... Nf4 {[%clk 1:05:11]} 16. Ne3 {[%clk
0:51:48]} 16... Qd7 {[%clk 0:56:41]} 17. Nxf5 {[%clk 0:38:40]} 17... Qxf5 {[%clk
0:56:08]} 18. Bc4 {[%clk 0:29:23]} 18... b5 {[%clk 0:54:02]} 19. Ba2 {[%clk
0:25:52]} 19... Nxd4 {[%clk 0:49:52]} 20. Rxc8 {[%clk 0:21:19]} 20... Nde2+
{[%clk 0:48:58]} 21. Kh1 {[%clk 0:20:38]} 21... Rxc8 {[%clk 0:45:46]} 22. Bxg7
{[%clk 0:20:41]} 22... Kxg7 {[%clk 0:45:17]} 23. Qd2 {[%clk 0:18:35]} 23... Rc2
{[%clk 0:40:51]} 24. Nd4 {[%clk 0:15:13]} 24... Rxd2 {[%clk 0:41:10]} 25. Nxf5+
{[%clk 0:15:31]} 25... gxf5 {[%clk 0:41:36]} 26. Bb1 {[%clk 0:15:21]} 26... Nd3
{[%clk 0:40:53]} 27. h3 {[%clk 0:14:25]} 27... Rd1 {[%clk 0:41:08]} 28. Rxd1
{[%clk 0:14:22]} 28... Nxf2+ {[%clk 0:41:23]} 29. Kh2 {[%clk 0:14:37]} 29...
Nxd1 {[%clk 0:41:45]} 30. Bxf5 {[%clk 0:15:01]} 30... Nd4 {[%clk 0:41:58]} 31.
Bc8 {[%clk 0:15:19]} 31... Nc2 {[%clk 0:42:14]} 32. Bxa6 {[%clk 0:15:40]} 32...
Nxa3 {[%clk 0:42:39]} 33. Kg3 {[%clk 0:15:19]} 33... Ne3 {[%clk 0:42:57]} 0-1

[Variant "Standard"]
[Site "Europe Echecs"]

[Event "Championnat du monde jeunes U10"]
[Date "2024.11.25"]
[White "Shrubok, Herman"]
[Black "Akramov, Khusan"]
[WhiteElo "1477"]
[BlackElo "1782"]
[Round "10.35"]
[Result "0-1"]
[TimeControl "5400+30"]

1. e4 {[%clk 1:29:37]} 1... c6 {[%clk 1:30:58]} 2. d4 {[%clk 1:28:35]} 2... d5
{[%clk 1:31:23]} 3. Nc3 {[%clk 1:27:39]} 3... dxe4 {[%clk 1:31:50]} 4. Nxe4
{[%clk 1:26:47]} 4... Nf6 {[%clk 1:32:05]} 5. Nxf6+ {[%clk 1:25:41]} 5... exf6
{[%clk 1:32:33]} 6. Be3 {[%clk 1:23:53]} 6... Bd6 {[%clk 1:32:58]} 7. Bd3 {[%clk
1:22:42]} 7... O-O {[%clk 1:33:19]} 8. Ne2 {[%clk 1:21:52]} 8... Re8 {[%clk
1:33:25]} 9. O-O {[%clk 1:19:44]} 9... Nd7 {[%clk 1:33:35]} 10. Ng3 {[%clk
1:17:34]} 10... Nf8 {[%clk 1:32:51]} 11. c4 {[%clk 1:15:47]} 11... Be6 {[%clk
1:32:41]} 12. Qc2 {[%clk 1:13:09]} 12... Ng6 {[%clk 1:30:27]} 13. Rfd1 {[%clk
1:07:58]} 13... Rc8 {[%clk 1:22:40]} 14. Ne4 {[%clk 1:05:16]} 14... Bb8 {[%clk
1:22:15]} 15. Nc5 {[%clk 1:02:52]} 15... Qc7 {[%clk 1:22:02]} 16. g3 {[%clk
1:01:41]} 16... Bg4 {[%clk 1:18:24]} 17. Be2 {[%clk 0:59:56]} 17... Bxe2 {[%clk
1:18:24]} 18. Qxe2 {[%clk 1:00:16]} 18... f5 {[%clk 1:10:53]} 19. d5 {[%clk
0:57:26]} 19... cxd5 {[%clk 1:11:15]} 20. Rxd5 {[%clk 0:56:36]} 20... f4 {[%clk
1:10:46]} 21. gxf4 {[%clk 0:56:20]} 21... Nxf4 {[%clk 1:11:02]} 22. Bxf4 {[%clk
0:55:46]} 22... Qxf4 {[%clk 1:10:41]} 23. Qh5 {[%clk 0:54:22]} 23... Rc6 {[%clk
1:04:02]} 24. Rf5 {[%clk 0:45:29]} 24... Rg6+ {[%clk 1:03:11]} 25. Kh1 {[%clk
0:45:28]} 25... Qc7 {[%clk 0:56:21]} 26. f4 {[%clk 0:41:11]} 26... b6 {[%clk
0:52:02]} 27. Nb3 {[%clk 0:37:27]} 27... Qxc4 {[%clk 0:50:49]} 28. Qf3 {[%clk
0:35:06]} 28... Qe6 {[%clk 0:49:49]} 29. Rg5 {[%clk 0:32:53]} 29... Rxg5 {[%clk
0:49:24]} 30. fxg5 {[%clk 0:33:15]} 30... Qe5 {[%clk 0:49:37]} 31. Qg2 {[%clk
0:32:14]} 31... a5 {[%clk 0:44:01]} 32. Rf1 {[%clk 0:29:20]} 32... a4 {[%clk
0:43:15]} 33. Nc1 {[%clk 0:29:40]} 33... Bd6 {[%clk 0:37:19]} 34. Nd3 {[%clk
0:28:53]} 34... Qe2 {[%clk 0:35:42]} 35. Qxe2 {[%clk 0:29:03]} 35... Rxe2 {[%clk
0:36:10]} 36. Rf2 {[%clk 0:28:31]} 36... Rxf2 {[%clk 0:36:27]} 37. Nxf2 {[%clk
0:28:57]} 37... Bf4 {[%clk 0:36:53]} 38. Ne4 {[%clk 0:28:45]} 38... Be5 {[%clk
0:37:16]} 39. b3 {[%clk 0:28:40]} 39... axb3 {[%clk 0:37:12]} 40. axb3 {[%clk
0:29:05]} 40... Kf8 {[%clk 0:37:00]} 41. Kg2 {[%clk 0:29:08]} 41... Ke7 {[%clk
0:37:23]} 42. h4 {[%clk 0:29:25]} 42... Ke6 {[%clk 0:36:58]} 43. Kf3 {[%clk
0:29:20]} 43... Kd5 {[%clk 0:33:08]} 44. Ke3 {[%clk 0:28:40]} 44... Kc6 {[%clk
0:33:30]} 45. Kd3 {[%clk 0:27:45]} 45... Kb5 {[%clk 0:33:50]} 46. Nd2 {[%clk
0:28:00]} 46... g6 {[%clk 0:31:36]} 47. Nf3 {[%clk 0:28:09]} 47... Bg7 {[%clk
0:29:44]} 48. Nd2 {[%clk 0:28:30]} 48... Kb4 {[%clk 0:30:05]} 49. Nc4 {[%clk
0:28:25]} 49... b5 {[%clk 0:30:11]} 50. Nd2 Bc3 {[%clk 0:30:20]} 51. Ne4 {[%clk
0:28:18]} 51... Be1 {[%clk 0:30:43]} 52. Nd6 {[%clk 0:28:07]} 52... Bxh4 {[%clk
0:31:02]} 53. Nxf7 {[%clk 0:28:31]} 53... Kxb3 {[%clk 0:31:28]} 54. Nd6 {[%clk
0:28:50]} 54... b4 {[%clk 0:31:50]} 55. Ne4 {[%clk 0:29:14]} 55... Ka2 {[%clk
0:31:57]} 56. Kc4 {[%clk 0:29:19]} 56... b3 {[%clk 0:32:13]} 57. Nc3+ {[%clk
0:29:28]} 57... Kb2 {[%clk 0:32:22]} 58. Nd1+ {[%clk 0:29:43]} 58... Kc1 {[%clk
0:32:43]} 59. Kd4 0-1

[Variant "Standard"]
[Site "Europe Echecs"]